fUST/lending_fUST_20250821
["ID","MTS","AMOUNT","RATE_DAILY","PERIOD"]
[380367888,1755707440075,-1630.70969031,0.00024899,2]
[380367891,1755707440084,-1630.70969031,0.00024899,2]
[380367894,1755707440094,-1630.70969031,0.00024899,2]
[380367897,1755707440103,-151.0,0.000249,7]
[380367900,1755707440112,-151.0,0.000249,7]
[380367903,1755707440121,-151.0,0.000249,7]
[380367906,1755707440130,-153.130788,0.000249,7]
[380367908,1755707440139,-151.0,0.000249,7]
[380367911,1755707440149,-154.843875,0.000249,7]
[380367914,1755707440159,-151.0,0.000249,7]
[380367917,1755707440168,-151.0,0.000249,7]
[380367920,1755707440177,-152.315725,0.000249,7]
[380367923,1755707440186,-151.0,0.000249,7]
[380367926,1755707440195,-151.0,0.000249,7]
[380367929,1755707440205,-151.0,0.000249,7]
[380367932,1755707440214,-151.0,0.000249,7]
[380367935,1755707440224,-151.0,0.000249,7]
[380367938,1755707440233,-151.0,0.000249,7]
[380367941,1755707440243,-151.0,0.000249,7]
[380367944,1755707440252,-151.0,0.000249,7]
[380367947,1755707440262,-151.0,0.000249,7]
[380367950,1755707440271,-160.803441,0.000249,7]
[380367952,1755707440280,-151.565054,0.000249,7]
[380367955,1755707440289,-151.0,0.000249,7]
[380367958,1755707440299,-151.0,0.000249,7]
[380367961,1755707440309,-151.0,0.000249,7]
[380367963,1755707440318,-151.0,0.000249,7]
[380367966,1755707440327,-200.43177,0.000249,7]
[380367969,1755707440337,-151.0,0.000249,7]
[380367992,1755707440346,-151.0,0.000249,7]
[380367995,1755707440454,-151.0,0.000249,7]
[380367998,1755707440465,-151.0,0.000249,7]
[380368001,1755707440474,-151.0,0.000249,7]
[380368004,1755707440483,-151.0,0.000249,7]
[380368007,1755707440492,-151.0,0.000249,7]
[380368010,1755707440502,-151.0,0.000249,7]
[380368012,1755707440511,-293.242872,0.000249,7]
[380368015,1755707440520,-293.242872,0.000249,7]
[380368018,1755707440529,-151.0,0.000249,7]
[380368021,1755707440538,-563910.20924217,0.000249,2]
[380368028,1755707440565,-1458.54999925,0.000249,2]
[380368113,1755707441218,-145321.04467966,0.000249,2]
[380368122,1755707441289,-160.0,0.0002489,2]
[380368123,1755707441299,-42808.85,0.000249,2]
[380368153,1755707441567,-5701.0,0.000249,2]
[380368344,1755707443682,-5000.0,0.00024642,2]
[380368346,1755707443695,-6944.76386692,0.000249,2]
[380368350,1755707443708,-293.242872,0.000249,7]
[380368353,1755707443721,-293.242872,0.000249,7]
[380368356,1755707443732,-151.0,0.000249,7]
[380368360,1755707443744,-151.0,0.000249,7]
[380368364,1755707443757,-1013.23298153,0.000249,2]
[380368368,1755707443769,-210.381504,0.000249,7]
[380368372,1755707443782,-210.381504,0.000249,7]
[380368375,1755707443794,-210.381504,0.000249,7]
[380368378,1755707443806,-210.381504,0.000249,7]
[380368382,1755707443817,-151.0,0.000249,7]
[380368384,1755707443828,-151.0,0.000249,7]
[380368387,1755707443839,-166.036807,0.000249,7]
[380368389,1755707443852,-300.0,0.000249,2]
[380368391,1755707443864,-151.0,0.000249,7]
[380368394,1755707443876,-206.0,0.00024915,2]
[380368396,1755707443887,-500.0,0.00024932,2]
[380368398,1755707443899,-271.0,0.00024941,2]
[380368400,1755707443909,-1500.0,0.00024968,2]
[380368402,1755707443919,-503.66116912,0.00024968,2]
[380368404,1755707443930,-1000.0,0.00024968,2]
[380368406,1755707443942,-1500.0,0.00024968,2]
[380368409,1755707443959,-260.0,0.00024977,2]
[380368411,1755707443970,-500.0,0.00024981,2]
[380368413,1755707443982,-1500.0,0.00025,2]
[380368415,1755707443996,-1500.0,0.00025,2]
[380368418,1755707444008,-1500.0,0.00025,2]
[380368420,1755707444020,-1500.0,0.00025,2]
[380368422,1755707444032,-1500.0,0.00025,2]
[380368424,1755707444045,-1500.0,0.00025,2]
[380368427,1755707444057,-1867.44,0.00025,2]
[380368429,1755707444070,-1500.0,0.00025,2]
[380368431,1755707444082,-1500.0,0.00025,2]
[380368433,1755707444092,-1500.0,0.00025,2]
[380368435,1755707444102,-1500.0,0.00025,2]
[380368437,1755707444112,-271.0,0.00025085,2]
[380368439,1755707444122,-216.9170744,0.000251,7]
[380368441,1755707444133,-168.0,0.00025195,2]
[380368444,1755707444145,-500.0,0.00025206,2]
[380368446,1755707444159,-206.0,0.00025211,2]
[380368448,1755707444171,-1221.8379874,0.0002523,2]
[380368450,1755707444183,-206.0,0.00025242,2]
[380368452,1755707444193,-500.0,0.00025255,2]
[380368454,1755707444203,-271.0,0.00025281,2]
[380368457,1755707444215,-199.0,0.00025297,20]
[380368459,1755707444227,-192.0,0.00025359,2]
[380368461,1755707444238,-2564.9977236,0.00025375,2]
[380368463,1755707444249,-271.0,0.00025377,2]
[380368465,1755707444259,-600.0,0.00025397,20]
[380368467,1755707444269,-19405.6039269,0.000254,2]
[380369693,1755707667027,-5000.0,0.00019701,2]
[380369694,1755707667050,-462.43483786,0.000199,2]
[380369696,1755707744640,447.0203434,0.000199,2]
[380369697,1755707910970,361.56773111,0.0002,2]
[380369698,1755707914752,443.50224852,0.000199,2]
[380369699,1755708050673,5000.0,0.0002,2]
[380369700,1755708066041,1947.92097698,0.0002,2]
[380369701,1755708091546,447.66789384,0.000199,2]
[380369702,1755708257738,432.74563077,0.000199,2]
[380369703,1755708289131,158.530674,0.00013699,2]
[380369704,1755708354116,-3169.43451798,0.00020143,2]
[380369705,1755708354137,-300.86292654,0.00020143,2]
[380369706,1755708354157,-259.71286423,0.00020243,2]
[380369707,1755708354177,-300.0,0.00020343,2]
[380369708,1755708354198,-1200.0,0.00020343,2]
[380369709,1755708354218,-5816.0040118,0.00020344,2]
[380369710,1755708354241,-259.71286419,0.000206,2]
[380369711,1755708354263,-432.74563051,0.00020835,2]
[380369712,1755708354286,-259.71286419,0.00020958,2]
[380369713,1755708354307,-259.71286419,0.00021316,2]
[380369714,1755708354345,-259.71286419,0.00021673,2]
[380369715,1755708354388,-432.74563051,0.00021771,2]
[380369716,1755708354431,-50000.0,0.00021773,2]
[380369717,1755708354459,-500.0,0.00021773,2]
[380369718,1755708354479,-500.34842588,0.00021773,2]
[380369719,1755708354497,-10000.0,0.00021802,2]
[380369720,1755708354517,-420.0,0.00022143,2]
[380369721,1755708354542,-300.0,0.00022205,20]
[380369722,1755708354566,-300.0,0.00022205,20]
[380369723,1755708354585,-3396.22611379,0.00022462,2]
[380369724,1755708354605,-158.530674,0.00022505,2]
[380369725,1755708354625,-2183.31810187,0.0002259,2]
[380369726,1755708354645,-3614.5155424,0.0002259,2]
[380369727,1755708354665,-2492.85950861,0.0002259,2]
[380369728,1755708354684,-7712.18686694,0.00022604,2]
[380369729,1755708392157,160.0,0.0002,3]
[380369730,1755708421458,389.47106772,0.000199,2]
[380369731,1755708426134,-389.47106745,0.00020835,2]
[380369732,1755708426156,-1132.42378835,0.00021673,2]
[380369733,1755708426176,-405.147876,0.00021676,2]
[380369734,1755708426197,-389.47106745,0.00021771,2]
[380369735,1755708426218,-1132.42378833,0.00022452,2]
[380369736,1755708426239,-12687.94051737,0.0002259,2]
[380369737,1755708426261,-300.0,0.00022596,2]
[380369738,1755708426282,-2264.10087164,0.00022645,2]
[380369739,1755708426308,-500.0,0.00022673,2]
[380369740,1755708426328,-500.0,0.00022673,2]
[380369741,1755708426348,-500.0,0.00022673,2]
[380369742,1755708426370,-500.0,0.00022673,2]
[380369743,1755708426390,-500.0,0.00022673,2]
[380369744,1755708426410,-500.0,0.00022673,2]
[380369745,1755708426429,-277.19577019,0.00022673,2]
[380369746,1755708426449,-500.0,0.00022673,2]
[380369747,1755708426469,-500.0,0.00022673,2]
[380369748,1755708426489,-204.64372186,0.00022673,2]
[380369749,1755708426508,-500.0,0.00022673,2]
[380369750,1755708426527,-500.0,0.00022673,2]
[380369751,1755708426547,-500.0,0.00022673,2]
[380369752,1755708426566,-502.26575725,0.00022673,2]
[380369753,1755708426585,-500.0,0.00022673,2]
[380369754,1755708426607,-500.0,0.00022673,2]
[380369755,1755708426626,-160.38698651,0.00022673,2]
[380369756,1755708426646,-500.0,0.00022673,2]
[380369757,1755708426666,-500.0,0.00022673,2]
[380369758,1755708426685,-501.77249218,0.00022673,2]
[380369759,1755708426706,-500.0,0.00022673,2]
[380369760,1755708426727,-500.0,0.00022673,2]
[380369761,1755708426747,-500.0,0.00022673,2]
[380369762,1755708426767,-159.55032346,0.00022673,2]
[380369763,1755708426786,-500.0,0.00022673,2]
[380369764,1755708426806,-500.0,0.00022673,2]
[380369765,1755708426828,-500.0,0.00022673,2]
[380369766,1755708426847,-500.0,0.00022673,2]
[380369767,1755708426867,-500.0,0.00022673,2]
[380369768,1755708426887,-500.0,0.00022673,2]
[380369769,1755708426906,-500.0,0.00022673,2]
[380369770,1755708426925,-9675.20185365,0.00022673,2]
[380369771,1755708432097,-28641.99998293,0.00022673,2]
[380369772,1755708432123,-1000.0,0.00022677,2]
[380369773,1755708432145,-1000.0,0.00022677,2]
[380369774,1755708432167,-877.52615819,0.00022677,2]
[380369775,1755708432190,-300.90136408,0.00022677,2]
[380369776,1755708432210,-151.0,0.00022677,2]
[380369777,1755708432231,-283.14744146,0.00022677,2]
[380369778,1755708432260,-151.0,0.00022677,2]
[380369779,1755708432286,-300.0,0.00022677,2]
[380369780,1755708432307,-151.0,0.00022677,2]
[380369781,1755708432327,-151.0,0.00022677,2]
[380369782,1755708432347,-447.32,0.0002268,3]
[380369783,1755708432368,-160.0,0.00022687,2]
[380369784,1755708432389,-160.0,0.00022687,2]
[380369785,1755708432408,-375.94359665,0.00022687,2]
[380369786,1755708432427,-2039.489,0.00022689,2]
[380369787,1755708432448,-179.508,0.00022689,2]
[380369788,1755708432469,-500.0,0.00022689,2]
[380369789,1755708432490,-500.0,0.00022689,2]
[380369790,1755708432509,-500.0,0.00022689,2]
[380369791,1755708432530,-500.0,0.00022689,2]
[380369792,1755708432550,-500.0,0.00022689,2]
[380369793,1755708432570,-500.0,0.00022689,2]
[380369794,1755708432589,-583.17545622,0.00022689,2]
[380369795,1755708432610,-500.0,0.00022689,2]
[380369796,1755708432630,-500.0,0.00022689,2]
[380369797,1755708432649,-500.0,0.00022689,2]
[380369798,1755708432669,-500.0,0.00022689,2]
[380369799,1755708432690,-500.0,0.00022689,2]
[380369800,1755708432709,-500.0,0.00022689,2]
[380369801,1755708432730,-500.0,0.00022689,2]
[380369802,1755708432750,-500.0,0.00022689,2]
[380369803,1755708432770,-500.0,0.00022689,2]
[380369804,1755708432789,-500.0,0.00022689,2]
[380369805,1755708432810,-500.0,0.00022689,2]
[380369806,1755708432834,-500.0,0.00022689,2]
[380369807,1755708432854,-500.0,0.00022689,2]
[380369808,1755708432895,-500.0,0.00022689,2]
[380369809,1755708432916,-500.0,0.00022689,2]
[380369810,1755708432938,-500.0,0.00022689,2]
[380369811,1755708432958,-500.0,0.00022689,2]
[380369812,1755708432978,-500.0,0.00022689,2]
[380369813,1755708432998,-500.0,0.00022689,2]
[380369814,1755708433019,-500.0,0.00022689,2]
[380369815,1755708433041,-500.0,0.00022689,2]
[380369816,1755708433062,-500.0,0.00022689,2]
[380369817,1755708433084,-500.0,0.00022689,2]
[380369818,1755708433107,-500.0,0.00022689,2]
[380369819,1755708433128,-500.0,0.00022689,2]
[380369820,1755708433150,-500.0,0.00022689,2]
[380369821,1755708433173,-500.0,0.00022689,2]
[380369822,1755708433195,-500.0,0.00022689,2]
[380369823,1755708433216,-500.0,0.00022689,2]
[380369824,1755708433344,-500.0,0.00022689,2]
[380369825,1755708433369,-500.0,0.00022689,2]
[380369826,1755708433390,-500.0,0.00022689,2]
[380369827,1755708433410,-500.0,0.00022689,2]
[380369828,1755708433433,-500.0,0.00022689,2]
[380369829,1755708433455,-500.0,0.00022689,2]
[380369830,1755708433477,-314.53184952,0.00022689,2]
[380369831,1755708433499,-500.0,0.00022689,2]
[380369832,1755708433522,-500.0,0.00022689,2]
[380369833,1755708433545,-396.1403844,0.00022689,2]
[380369834,1755708433567,-63731.26665455,0.0002269,2]
[380369835,1755708443085,-150.0,0.0002059,2]
[380369836,1755708443107,-90363.125559,0.0002269,2]
[380369837,1755708445280,900.0,0.0002,2]
[380369838,1755708450123,-20918.304765,0.0002269,2]
[380369839,1755708474258,900.0,0.0002,2]
[380369840,1755708595557,350.52396085,0.000199,2]
[380369883,1755708632660,-350.5239607,0.00020835,2]
[380369885,1755708632669,-188.136027,0.00021701,2]
[380369887,1755708632679,-350.5239607,0.00021771,2]
[380369889,1755708632688,-1895.43143002,0.00022009,2]
[380369891,1755708632697,-160.0,0.00022009,2]
[380369893,1755708632706,-160.0,0.00022009,2]
[380369895,1755708632715,-300.0,0.00022589,2]
[380369897,1755708632724,-6652.39857258,0.0002259,3]
[380369900,1755708632735,-7310.06019043,0.0002259,3]
[380370141,1755708638755,-4408.77005175,0.0002259,3]
[380370143,1755708638765,-375.94359665,0.0002259,3]
[380370145,1755708638775,-325.94993229,0.00022673,2]
[380370147,1755708638787,-500.0,0.00022673,2]
[380370149,1755708638796,-151.0,0.00022677,2]
[380370151,1755708638806,-2183.31810187,0.00022677,2]
[380370153,1755708638815,-191.39743105,0.0002269,2]
[380370155,1755708638827,-184.5461656,0.0002269,2]
[380370157,1755708638837,-194987.30302145,0.0002269,2]
[380370159,1755708638846,-5417.28,0.000227,7]
[380370161,1755708638855,-1147.83,0.000227,7]
[380370163,1755708638864,-24424.27,0.000227,2]
[380370165,1755708638874,-10199.69,0.000227,7]
[380370168,1755708638891,-417.15472785,0.000227,7]
[380370170,1755708638900,-528.77847288,0.000227,7]
[380370172,1755708638909,-375.94359665,0.000227,7]
[380370174,1755708638920,-350.5239607,0.00022706,2]
[380370176,1755708638929,-2264.10087164,0.00022732,2]
[380370178,1755708638938,-2347.87260389,0.00022787,2]
[380370180,1755708638947,-150.0,0.00022789,2]
[380370182,1755708638956,-1000.0,0.00022789,2]
[380370184,1755708638965,-1000.0,0.00022789,2]
[380370186,1755708638975,-1000.0,0.00022789,2]
[380370188,1755708638983,-1000.0,0.00022789,2]
[380370190,1755708638992,-1000.0,0.00022789,2]
[380370191,1755708639001,-1000.0,0.00022789,2]
[380370193,1755708639011,-1000.0,0.00022789,2]
[380370195,1755708639020,-1000.0,0.00022789,2]
[380370197,1755708639030,-1000.0,0.00022789,2]
[380370199,1755708639040,-1000.0,0.00022789,2]
[380370201,1755708639050,-1000.0,0.00022789,2]
[380370219,1755708639198,-1000.0,0.00022789,2]
[380370222,1755708639209,-1000.0,0.00022799,2]
[380370224,1755708639219,-2434.74389024,0.00022842,2]
[380370226,1755708639229,-1000.0,0.00022888,2]
[380370228,1755708639238,-2524.82941417,0.00022897,2]
[380370230,1755708639248,-1783.25714675,0.00022952,2]
[380370232,1755708639261,-232.24568399,0.00023,3]
[380370234,1755708639271,-160.0,0.00023,2]
[380370236,1755708639281,-160.0,0.00023,3]
[380370238,1755708639292,-602.46485233,0.00023092,2]
[380370240,1755708639301,-2492.85950857,0.00023143,2]
[380370242,1755708639310,-1000.0,0.00023221,2]
[380370244,1755708639324,-500.0,0.00023642,2]
[380370246,1755708639335,-350.5239607,0.00023642,2]
[380370248,1755708639344,-2492.85950857,0.00023695,2]
[380370250,1755708639353,-2516.44787537,0.00023711,2]
[380370252,1755708639363,-2516.44787537,0.00023734,2]
[380370254,1755708639372,-251.64478753,0.00023745,2]
[380370256,1755708639381,-251.64478753,0.00023758,2]
[380370258,1755708639390,-196.5037321,0.00023768,2]
[380370260,1755708639400,-2409.67702826,0.00023799,2]
[380370262,1755708639410,-151.0,0.000238,5]
[380370264,1755708639419,-160.0,0.000238,3]
[380370266,1755708639429,-417.15472785,0.000238,3]
[380370268,1755708639438,-1000.0,0.00023872,2]
[380370270,1755708639447,-500.0,0.00023873,2]
[380370272,1755708639457,-500.0,0.00023873,2]
[380370274,1755708639467,-500.0,0.00023873,2]
[380370276,1755708639476,-500.0,0.00023873,2]
[380370278,1755708639486,-345.42670777,0.00023873,2]
[380370280,1755708639495,-500.0,0.00023873,2]
[380370282,1755708639504,-500.0,0.00023873,2]
[380370284,1755708639514,-500.0,0.00023873,2]
[380370286,1755708639523,-500.0,0.00023873,2]
[380370288,1755708639532,-500.0,0.00023873,2]
[380370290,1755708639542,-501.5403866,0.00023873,2]
[380370292,1755708639553,-500.97096054,0.00023873,2]
[380370294,1755708639562,-502.76678058,0.00023873,2]
[380370296,1755708639571,-500.0,0.00023873,2]
[380370298,1755708639581,-501.83718057,0.00023873,2]
[380370300,1755708639590,-500.0,0.00023873,2]
[380370302,1755708639599,-508.52762757,0.00023873,2]
[380370304,1755708639610,-503.6102621,0.00023873,2]
[380370306,1755708639619,-500.0,0.00023873,2]
[380370308,1755708639629,-501.24782479,0.00023873,2]
[380370310,1755708639638,-500.0,0.00023873,2]
[380370312,1755708639647,-1000.0,0.00023898,2]
[380370314,1755708639656,-1000.0,0.00023898,2]
[380370317,1755708639666,-1000.0,0.00023899,2]
[380370319,1755708639675,-253.45067899,0.00023899,2]
[380370320,1755708639684,-500.0,0.00023899,2]
[380370322,1755708639693,-500.0,0.00023899,2]
[380370324,1755708639702,-500.0,0.00023899,2]
[380370326,1755708639712,-346.45318495,0.00023899,2]
[380370328,1755708639721,-500.0,0.00023899,2]
[380370330,1755708639730,-500.0,0.00023899,2]
[380370332,1755708639740,-399938.12,0.000239,4]
[380370334,1755708639749,-500.0,0.00023916,2]
[380370337,1755708639759,-160.0,0.00024,7]
[380370339,1755708639769,-844.05985274,0.00024,7]
[380370341,1755708639778,-232.24568399,0.00024,7]
[380370343,1755708639787,-160.0,0.00024,7]
[380370345,1755708639797,-151.0,0.00024046,2]
[380370347,1755708639806,-151.0,0.000242,7]
[380370349,1755708639815,-973.0,0.00024207,2]
[380370352,1755708639825,-2154.0,0.00024207,2]
[380370354,1755708639834,-637.0,0.00024207,2]
[380370355,1755708639844,-159.73,0.00024207,2]
[380370357,1755708639853,-408.0,0.00024207,2]
[380370359,1755708639862,-2492.85950857,0.00024248,2]
[380370361,1755708639872,-1147.83,0.000243,7]
[380370363,1755708639881,-24424.27,0.000243,2]
[380370365,1755708639890,-10199.69,0.000243,7]
[380370367,1755708639900,-160.0,0.00024367,2]
[380370369,1755708639909,-500.0,0.00024421,2]
[380370371,1755708639918,-1000.0,0.00024421,2]
[380370373,1755708639927,-597.05718573,0.00024421,2]
[380370375,1755708639937,-1000.0,0.00024421,2]
[380370377,1755708639946,-1000.0,0.00024421,2]
[380370379,1755708639955,-501.73351215,0.00024421,2]
[380370381,1755708639965,-500.0,0.00024421,2]
[380370383,1755708639975,-1000.0,0.00024421,2]
[380370385,1755708639985,-1000.0,0.00024421,2]
[380370387,1755708639995,-501.34172822,0.00024421,2]
[380370389,1755708640005,-1000.0,0.00024421,2]
[380370391,1755708640015,-151.0,0.000245,9]
[380370393,1755708640024,-5417.28,0.000245,7]
[380370395,1755708640034,-420.0,0.00024532,2]
[380370397,1755708640045,-2117.32125412,0.0002455,7]
[380370399,1755708640055,-3374.97367572,0.0002455,7]
[380370401,1755708640064,-350.5239607,0.00024577,2]
[380370403,1755708640074,-200.0,0.0002458,10]
[380370406,1755708640084,-334.79054578,0.00024637,2]
[380370408,1755708640094,-215.82729805,0.00024637,2]
[380370410,1755708640103,-417.15472785,0.00024637,2]
[380370412,1755708640113,-216.9170744,0.00024638,2]
[380370414,1755708640123,-160.0,0.00024638,2]
[380370415,1755708640132,-160.0,0.00024638,2]
[380370417,1755708640142,-528.77847288,0.00024638,2]
[380370419,1755708640152,-844.05985274,0.00024638,2]
[380370421,1755708640162,-232.24568399,0.00024638,2]
[380370424,1755708640171,-168.0,0.00024685,2]
[380370426,1755708640181,-151.0,0.000247,9]
[380370428,1755708640190,-173.39337669,0.00024733,3]
[380370430,1755708640199,-326.0,0.00024733,3]
[380370432,1755708640209,-326.0,0.00024733,3]
[380370434,1755708640219,-326.0,0.00024733,3]
[380370435,1755708640228,-326.0,0.00024733,3]
[380370438,1755708640238,-326.0,0.00024733,3]
[380370440,1755708640248,-326.0,0.00024733,3]
[380370442,1755708640258,-326.0,0.00024733,3]
[380370444,1755708640268,-326.0,0.00024733,3]
[380370445,1755708640277,-326.0,0.00024733,3]
[380370447,1755708640288,-326.0,0.00024733,3]
[380370449,1755708640298,-326.0,0.00024733,3]
[380370451,1755708640310,-326.0,0.00024733,3]
[380370453,1755708640327,-282.85812007,0.00024733,3]
[380370455,1755708640337,-1762.0,0.00024733,3]
[380370458,1755708640348,-1762.0,0.00024733,3]
[380370460,1755708640358,-1762.0,0.00024733,3]
[380370461,1755708640368,-154.58960332,0.00024733,3]
[380370463,1755708640377,-844.05985274,0.00024733,3]
[380370465,1755708640387,-528.77847288,0.00024733,3]
[380370467,1755708640398,-192.0,0.00024759,2]
[380370469,1755708640408,-150.81405309,0.00024773,2]
[380370471,1755708640418,-500.0,0.00024773,2]
[380370473,1755708640427,-500.67768814,0.00024773,2]
[380370475,1755708640437,-500.43512046,0.00024773,2]
[380370477,1755708640448,-500.0,0.00024773,2]
[380370480,1755708640458,-500.0,0.00024773,2]
[380370482,1755708640467,-1000.0,0.00024773,2]
[380370484,1755708640477,-500.0,0.00024799,2]
[380370486,1755708640488,-1618.95363156,0.00024799,2]
[380370488,1755708640497,-1618.95363156,0.00024799,2]
[380370490,1755708640507,-1618.95363156,0.00024799,2]
[380370492,1755708640516,-1618.95363156,0.00024799,2]
[380370494,1755708640526,-1618.95363156,0.00024799,2]
[380370496,1755708640536,-631.85099017,0.00024799,2]
[380370498,1755708640545,-1618.95363156,0.00024799,2]
[380370500,1755708640556,-500.0,0.00024799,2]
[380370502,1755708640565,-1618.95363156,0.00024799,2]
[380370503,1755708640575,-1618.95363156,0.00024799,2]
[380370505,1755708640584,-1618.95363156,0.00024799,2]
[380370507,1755708640594,-1618.95363156,0.00024799,2]
[380370509,1755708640603,-1618.95363156,0.00024799,2]
[380370511,1755708640612,-1618.95363156,0.00024799,2]
[380370513,1755708640621,-1618.95363156,0.00024799,2]
[380370515,1755708640630,-1618.95363156,0.00024799,2]
[380370517,1755708640639,-1618.95363156,0.00024799,2]
[380370518,1755708640648,-1618.95363156,0.00024799,2]
[380370519,1755708640657,-1677.82467271,0.00024799,2]
[380370520,1755708640666,-1677.82467271,0.00024799,2]
[380370521,1755708640675,-1677.82467271,0.00024799,2]
[380370522,1755708640683,-1677.82467271,0.00024799,2]
[380370523,1755708640692,-1677.82467271,0.00024799,2]
[380370524,1755708640701,-1677.82467271,0.00024799,2]
[380370525,1755708640710,-1677.82467271,0.00024799,2]
[380370526,1755708640719,-1677.82467271,0.00024799,2]
[380370527,1755708640728,-1677.82467271,0.00024799,2]
[380370528,1755708640736,-1677.82467271,0.00024799,2]
[380370529,1755708640745,-1677.82467271,0.00024799,2]
[380370530,1755708640754,-2492.85950857,0.000248,2]
[380370531,1755708640763,-79200.9544252,0.000248,2]
[380370532,1755708640772,-2409.67702826,0.0002485,2]
[380370533,1755708640780,-500.0,0.00024873,2]
[380370534,1755708640791,-501.70449007,0.00024873,2]
[380370535,1755708640800,-500.0,0.00024873,2]
[380370536,1755708640809,-8800.10604724,0.0002489,2]
[380370537,1755708640818,-151.0,0.000249,7]
[380370538,1755708640827,-154.843875,0.000249,7]
[380370539,1755708640836,-182.77662,0.000249,7]
[380370540,1755708640845,-151.0,0.000249,7]
[380370541,1755708640854,-151.0,0.000249,7]
[380370542,1755708640863,-151.0,0.000249,7]
[380370543,1755708640872,-151.0,0.000249,7]
[380370544,1755708640880,-177.960366,0.000249,7]
[380370545,1755708640889,-151.0,0.000249,7]
[380370546,1755708640898,-151.0,0.000249,7]
[380370547,1755708640906,-160.803441,0.000249,7]
[380370548,1755708640915,-151.0,0.000249,7]
[380370549,1755708640925,-151.0,0.000249,7]
[380370550,1755708640934,-200.43177,0.000249,7]
[380370551,1755708640943,-151.0,0.000249,7]
[380370553,1755708640953,-151.0,0.000249,7]
[380370555,1755708640962,-151.0,0.000249,7]
[380370557,1755708640972,-151.0,0.000249,7]
[380370559,1755708640981,-151.0,0.000249,7]
[380370561,1755708640990,-151.0,0.000249,7]
[380370563,1755708640999,-201.882496,0.000249,7]
[380370565,1755708641010,-151.0,0.000249,7]
[380370567,1755708641019,-151.0,0.000249,7]
[380370569,1755708641028,-151.0,0.000249,7]
[380370571,1755708641038,-151.0,0.000249,7]
[380370573,1755708641047,-151.0,0.000249,7]
[380370575,1755708641057,-151.0,0.000249,7]
[380370577,1755708641065,-151.0,0.000249,7]
[380370579,1755708641075,-151.0,0.000249,7]
[380370581,1755708641084,-151.0,0.000249,7]
[380370583,1755708641093,-263.918585,0.000249,7]
[380370585,1755708641103,-263.918585,0.000249,7]
[380370587,1755708641112,-263.918585,0.000249,7]
[380370589,1755708641121,-152.62283,0.000249,7]
[380370591,1755708641130,-263.918585,0.000249,7]
[380370593,1755708641140,-151.0,0.000249,7]
[380370595,1755708641149,-151.0,0.000249,7]
[380370597,1755708641158,-260.0,0.00024915,2]
[380370599,1755708641168,-1512.72430546,0.00024968,2]
[380370601,1755708641177,-502.42720489,0.00024968,2]
[380370603,1755708641187,-1500.0,0.00024968,2]
[380370605,1755708641196,-1503.30183902,0.00024968,2]
[380370607,1755708641206,-192.0,0.00024982,2]
[380370609,1755708641215,-2407.4495499,0.00025098,2]
[380370611,1755708641224,-817.648,0.00025178,2]
[380370613,1755708641233,-2200.0,0.00025178,2]
[380370615,1755708641243,-160.8718701,0.00025223,2]
[380370617,1755708641252,-151.0,0.00025255,2]
[380370619,1755708641262,-218.11712398,0.00025255,2]